[Event "Titled Tuesday Blitz December 13 Early 2022"]
[White "Thorhallsson, Simon"]
[Black "Albertini, Luca"]
[WhiteFideId "2310090"]
[BlackFideId "847038"]
[WhiteElo "2108"]
[BlackElo "2207"]
[Result "1-0"]
[Round "11"]
[TimeControl "180+1"]
[Date "2022.12.14"]
[WhiteClock "0:00:43"]
[BlackClock "0:00:41"]

1. Nf3 {[%clk 0:03:00]}  d5 {[%clk 0:02:58]} 2. g3 {[%clk 0:03:00]}  Nf6 {[%clk 0:02:58]} 3. Bg2 {[%clk 0:03:00]}  c5 {[%clk 0:02:58]} 4. O-O {[%clk 0:03:00]}  Nc6 {[%clk 0:02:58]} 5. d4 {[%clk 0:03:00]}  e6 {[%clk 0:02:57]} 6. c4 {[%clk 0:03:00]}  cxd4 {[%clk 0:02:57]} 7. Nxd4 {[%clk 0:02:59]}  Bc5 {[%clk 0:02:57]} 8. Nb3 {[%clk 0:02:47]}  Bb6 {[%clk 0:02:56]} 9. cxd5 {[%clk 0:02:46]}  exd5 {[%clk 0:02:55]} 10. Nc3 {[%clk 0:02:43]}  Be6 {[%clk 0:02:55]} 11. Bg5 {[%clk 0:02:40]}  d4 {[%clk 0:02:41]} 12. Ne4 {[%clk 0:02:35]}  h6 {[%clk 0:02:28]} 13. Nxf6+ {[%clk 0:02:32]}  gxf6 {[%clk 0:02:29]} 14. Bf4 {[%clk 0:02:31]}  Rc8 {[%clk 0:02:18]} 15. Rc1 {[%clk 0:02:26]}  Qd7 {[%clk 0:02:12]} 16. Qd2 {[%clk 0:02:20]}  h5 {[%clk 0:02:11]} 17. h4 {[%clk 0:02:20]}  Bh3 {[%clk 0:02:03]} 18. Nc5 {[%clk 0:01:54]}  Qf5 {[%clk 0:01:46]} 19. Nxb7 {[%clk 0:01:50]}  O-O {[%clk 0:01:33]} 20. Nd6 {[%clk 0:01:50]}  Qe6 {[%clk 0:01:33]} 21. Nxc8 {[%clk 0:01:46]}  Rxc8 {[%clk 0:01:34]} 22. Bxh3 {[%clk 0:01:31]}  Qxh3 {[%clk 0:01:35]} 23. b4 {[%clk 0:01:30]}  Ne7 {[%clk 0:01:18]} 24. Rxc8+ {[%clk 0:01:28]}  Qxc8 {[%clk 0:01:19]} 25. Rc1 {[%clk 0:01:22]}  Qe6 {[%clk 0:01:19]} 26. Bc7 {[%clk 0:01:19]}  Ng6 {[%clk 0:01:08]} 27. Bxb6 {[%clk 0:01:16]}  axb6 {[%clk 0:01:09]} 28. Qxd4 {[%clk 0:01:13]}  Qxe2 {[%clk 0:01:03]} 29. Qxf6 {[%clk 0:01:10]}  Qg4 {[%clk 0:01:03]} 30. Re1 {[%clk 0:01:03]}  Nf8 {[%clk 0:01:01]} 31. Re5 {[%clk 0:00:59]}  Ne6 {[%clk 0:00:59]} 32. Rxe6 {[%clk 0:00:51]}  fxe6 {[%clk 0:00:58]} 33. Qg5+ {[%clk 0:00:51]}  Qxg5 {[%clk 0:00:59]} 34. hxg5 {[%clk 0:00:52]}  b5 {[%clk 0:00:51]} 35. Kg2 {[%clk 0:00:47]}  Kf7 {[%clk 0:00:51]} 36. Kh3 {[%clk 0:00:47]}  e5 {[%clk 0:00:49]} 37. Kh4 {[%clk 0:00:43]}  Kg6 {[%clk 0:00:46]} 38. f3 {[%clk 0:00:43]}  Kf5 {[%clk 0:00:39]} 39. Kxh5 {[%clk 0:00:43]}  e4 {[%clk 0:00:40]} 40. fxe4+ {[%clk 0:00:43]}  Kxe4 {[%clk 0:00:41]} 41. g6 {[%clk 0:00:43]} 1-0


[Site "https://www.chess.com"]

[Event "Titled Tuesday Blitz December 13 Early 2022"]
[White "Torres Boch, Jose Francisco"]
[Black "Ambartsumova, Karina"]
[WhiteFideId "2278383"]
[BlackFideId "4166299"]
[WhiteElo "2073"]
[BlackElo "2319"]
[Result "1-0"]
[Round "11"]
[TimeControl "180+1"]
[Date "2022.12.14"]
[WhiteClock "0:00:04"]
[BlackClock "0:00:02"]

1. e4 {[%clk 0:02:54]}  e5 {[%clk 0:03:00]} 2. Nf3 {[%clk 0:02:54]}  d5 {[%clk 0:03:00]} 3. d3 {[%clk 0:02:47]}  Nc6 {[%clk 0:02:57]} 4. exd5 {[%clk 0:02:46]}  Qxd5 {[%clk 0:02:57]} 5. Nc3 {[%clk 0:02:47]}  Qd8 {[%clk 0:02:56]} 6. g3 {[%clk 0:02:47]}  Nf6 {[%clk 0:02:56]} 7. Bg2 {[%clk 0:02:47]}  Bg4 {[%clk 0:02:54]} 8. O-O {[%clk 0:02:48]}  Be7 {[%clk 0:02:47]} 9. Be3 {[%clk 0:02:43]}  O-O {[%clk 0:02:46]} 10. Ne4 {[%clk 0:02:43]}  Qd7 {[%clk 0:02:43]} 11. Qe1 {[%clk 0:02:33]}  Nd5 {[%clk 0:02:37]} 12. Bc5 {[%clk 0:02:29]}  Rae8 {[%clk 0:02:32]} 13. Bxe7 {[%clk 0:02:14]}  Rxe7 {[%clk 0:02:27]} 14. Nc5 {[%clk 0:02:09]}  Qc8 {[%clk 0:02:22]} 15. Qe4 {[%clk 0:02:08]}  Nf6 {[%clk 0:02:19]} 16. Qa4 {[%clk 0:02:06]}  Rfe8 {[%clk 0:01:42]} 17. Rfe1 {[%clk 0:02:06]}  h6 {[%clk 0:01:31]} 18. b4 {[%clk 0:02:01]}  Nd8 {[%clk 0:01:08]} 19. Nd2 {[%clk 0:01:53]}  b6 {[%clk 0:01:07]} 20. Nce4 {[%clk 0:01:53]}  Nxe4 {[%clk 0:01:05]} 21. Bxe4 {[%clk 0:01:53]}  a6 {[%clk 0:00:59]} 22. c4 {[%clk 0:01:34]}  Bd7 {[%clk 0:00:58]} 23. Qc2 {[%clk 0:01:33]}  Ne6 {[%clk 0:00:58]} 24. Nb3 {[%clk 0:01:32]}  Ba4 {[%clk 0:00:56]} 25. Bf5 {[%clk 0:01:31]}  Bxb3 {[%clk 0:00:49]} 26. Qxb3 {[%clk 0:01:23]}  Qd8 {[%clk 0:00:42]} 27. Bxe6 {[%clk 0:01:20]}  Rxe6 {[%clk 0:00:43]} 28. Re3 {[%clk 0:01:17]}  Qd4 {[%clk 0:00:29]} 29. Rae1 {[%clk 0:01:16]}  f5 {[%clk 0:00:29]} 30. Qa4 {[%clk 0:01:10]}  f4 {[%clk 0:00:19]} 31. gxf4 {[%clk 0:01:01]}  Qxf4 {[%clk 0:00:20]} 32. Qxa6 {[%clk 0:00:53]}  Rf8 {[%clk 0:00:20]} 33. R1e2 {[%clk 0:00:50]}  Qg4+ {[%clk 0:00:19]} 34. Kf1 {[%clk 0:00:50]}  Ref6 {[%clk 0:00:15]} 35. Qb7 {[%clk 0:00:46]}  Qh4 {[%clk 0:00:06]} 36. Qg2 {[%clk 0:00:44]}  Kh7 {[%clk 0:00:05]} 37. Rg3 {[%clk 0:00:44]}  R8f7 {[%clk 0:00:04]} 38. h3 {[%clk 0:00:43]}  Rf4 {[%clk 0:00:03]} 39. Rg4 {[%clk 0:00:39]}  Qf6 {[%clk 0:00:03]} 40. Rxf4 {[%clk 0:00:38]}  exf4 {[%clk 0:00:04]} 41. Qe4+ {[%clk 0:00:36]}  g6 {[%clk 0:00:04]} 42. Qe6 {[%clk 0:00:36]}  Qa1+ {[%clk 0:00:04]} 43. Kg2 {[%clk 0:00:35]}  Qg7 {[%clk 0:00:05]} 44. f3 {[%clk 0:00:33]}  h5 {[%clk 0:00:04]} 45. Qe5 {[%clk 0:00:32]}  Qh6 {[%clk 0:00:04]} 46. d4 {[%clk 0:00:32]}  Rd7 {[%clk 0:00:03]} 47. d5 {[%clk 0:00:32]}  Rf7 {[%clk 0:00:03]} 48. Qe6 {[%clk 0:00:31]}  Qg5+ {[%clk 0:00:03]} 49. Kf1 {[%clk 0:00:29]}  Rg7 {[%clk 0:00:03]} 50. Ke1 {[%clk 0:00:26]}  Qg3+ {[%clk 0:00:03]} 51. Kd2 {[%clk 0:00:27]}  Qxf3 {[%clk 0:00:03]} 52. Qe4 {[%clk 0:00:26]}  Qg3 {[%clk 0:00:03]} 53. Qd4 {[%clk 0:00:24]}  f3 {[%clk 0:00:03]} 54. Rf2 {[%clk 0:00:23]}  Re7 {[%clk 0:00:03]} 55. c5 {[%clk 0:00:18]}  Qg5+ {[%clk 0:00:04]} 56. Kc2 {[%clk 0:00:17]}  Qf5+ {[%clk 0:00:03]} 57. Qd3 {[%clk 0:00:16]}  Qf6 {[%clk 0:00:01]} 58. Rxf3 {[%clk 0:00:16]}  Qe5 {[%clk 0:00:01]} 59. Rf2 {[%clk 0:00:16]}  bxc5 {[%clk 0:00:02]} 60. bxc5 {[%clk 0:00:15]}  Qa1 {[%clk 0:00:02]} 61. Qb3 {[%clk 0:00:14]}  Qe1 {[%clk 0:00:01]} 62. Rd2 {[%clk 0:00:14]}  Qe4+ {[%clk 0:00:02]} 63. Qd3 {[%clk 0:00:14]}  Qa4+ {[%clk 0:00:02]} 64. Kb2 {[%clk 0:00:14]}  Qb4+ {[%clk 0:00:02]} 65. Qb3 {[%clk 0:00:13]}  Qxd2+ {[%clk 0:00:02]} 66. Ka3 {[%clk 0:00:11]}  Qg5 {[%clk 0:00:02]} 67. Kb4 {[%clk 0:00:10]}  Qf6 {[%clk 0:00:03]} 68. Kb5 {[%clk 0:00:10]}  Re5 {[%clk 0:00:03]} 69. Qc4 {[%clk 0:00:07]}  Qf5 {[%clk 0:00:03]} 70. Kc6 {[%clk 0:00:07]}  Qf6+ {[%clk 0:00:03]} 71. d6 {[%clk 0:00:07]}  cxd6 {[%clk 0:00:03]} 72. cxd6 {[%clk 0:00:08]}  Re6 {[%clk 0:00:03]} 73. Qd5 {[%clk 0:00:07]}  Qf7 {[%clk 0:00:04]} 74. a4 {[%clk 0:00:05]}  h4 {[%clk 0:00:02]} 75. a5 {[%clk 0:00:05]}  Qe8+ {[%clk 0:00:02]} 76. Kc7 {[%clk 0:00:04]} 1-0


[Site "https://www.chess.com"]

[Event "Titled Tuesday Blitz December 13 Early 2022"]
[White "Urazayev, Arystanbek"]
[Black "Daneshvar, Bardiya"]
[WhiteFideId "13709810"]
[BlackFideId "12576468"]
[WhiteElo "2463"]
[BlackElo "2429"]
[Result "1-0"]
[Round "11"]
[TimeControl "180+1"]
[Date "2022.12.13"]
[WhiteClock "0:01:09"]
[BlackClock "0:00:07"]

1. e4 {[%clk 0:03:00]}  c6 {[%clk 0:02:57]} 2. d4 {[%clk 0:02:59]}  d5 {[%clk 0:02:57]} 3. exd5 {[%clk 0:03:00]}  cxd5 {[%clk 0:02:58]} 4. c4 {[%clk 0:03:01]}  Nf6 {[%clk 0:02:58]} 5. Nc3 {[%clk 0:03:02]}  e6 {[%clk 0:02:58]} 6. Nf3 {[%clk 0:03:00]}  Bb4 {[%clk 0:02:58]} 7. cxd5 {[%clk 0:03:01]}  Nxd5 {[%clk 0:02:57]} 8. Bd2 {[%clk 0:03:01]}  O-O {[%clk 0:02:57]} 9. Bd3 {[%clk 0:03:01]}  Nxc3 {[%clk 0:02:57]} 10. bxc3 {[%clk 0:03:01]}  Be7 {[%clk 0:02:58]} 11. h4 {[%clk 0:03:01]}  h6 {[%clk 0:02:54]} 12. Qe2 {[%clk 0:03:01]}  Nd7 {[%clk 0:02:52]} 13. g4 {[%clk 0:02:59]}  Re8 {[%clk 0:02:05]} 14. g5 {[%clk 0:02:57]}  h5 {[%clk 0:02:06]} 15. g6 {[%clk 0:02:57]}  f5 {[%clk 0:02:01]} 16. Qxe6+ {[%clk 0:02:45]}  Kh8 {[%clk 0:02:00]} 17. Kf1 {[%clk 0:02:20]}  Nf6 {[%clk 0:01:45]} 18. Qb3 {[%clk 0:02:18]}  Ng4 {[%clk 0:01:19]} 19. Bg5 {[%clk 0:02:11]}  Qd6 {[%clk 0:01:02]} 20. Bxe7 {[%clk 0:01:51]}  Rxe7 {[%clk 0:01:03]} 21. Qb4 {[%clk 0:01:39]}  Qxb4 {[%clk 0:00:55]} 22. cxb4 {[%clk 0:01:40]}  Bd7 {[%clk 0:00:53]} 23. Kg2 {[%clk 0:01:37]}  Bc6 {[%clk 0:00:48]} 24. Rhe1 {[%clk 0:01:34]}  Rd7 {[%clk 0:00:46]} 25. Kg3 {[%clk 0:01:22]}  Bxf3 {[%clk 0:00:43]} 26. Kxf3 {[%clk 0:01:23]}  Rxd4 {[%clk 0:00:44]} 27. Bxf5 {[%clk 0:01:23]}  Rf8 {[%clk 0:00:39]} 28. Kg3 {[%clk 0:01:23]}  Rxb4 {[%clk 0:00:34]} 29. f3 {[%clk 0:01:18]}  Nh6 {[%clk 0:00:27]} 30. Be4 {[%clk 0:01:16]}  Rb5 {[%clk 0:00:18]} 31. a4 {[%clk 0:01:15]}  Nf5+ {[%clk 0:00:15]} 32. Kh3 {[%clk 0:01:13]}  Ra5 {[%clk 0:00:11]} 33. Bxb7 {[%clk 0:01:11]}  Nd6 {[%clk 0:00:09]} 34. Bc6 {[%clk 0:01:11]}  Raf5 {[%clk 0:00:09]} 35. Re6 {[%clk 0:01:09]}  Nc4 {[%clk 0:00:09]} 36. Rae1 {[%clk 0:01:08]}  R5f6 {[%clk 0:00:06]} 37. Rxf6 {[%clk 0:01:09]}  gxf6 {[%clk 0:00:06]} 38. Re7 {[%clk 0:01:09]}  Rg8 {[%clk 0:00:07]} 39. Rh7# {[%clk 0:01:09]} 1-0


[Site "https://www.chess.com"]

[Event "Titled Tuesday Blitz December 13 Early 2022"]
[White "Valle Maytin, Luis Enrique"]
[Black "Torres Cueto, Jesus Marcial"]
[WhiteFideId "3503666"]
[BlackFideId "4415280"]
[WhiteElo "2225"]
[BlackElo "2022"]
[Result "0-1"]
[Round "11"]
[TimeControl "180+1"]
[Date "2022.12.14"]
[WhiteClock "0:01:37"]
[BlackClock "0:01:10"]

1. e4 {[%clk 0:03:00]}  e6 {[%clk 0:02:55]} 2. d4 {[%clk 0:02:56]}  d5 {[%clk 0:02:53]} 3. Bd3 {[%clk 0:02:56]}  dxe4 {[%clk 0:02:49]} 4. Bxe4 {[%clk 0:02:57]}  Nd7 {[%clk 0:02:49]} 5. Ne2 {[%clk 0:02:55]}  Ngf6 {[%clk 0:02:35]} 6. Bf3 {[%clk 0:02:54]}  Be7 {[%clk 0:02:33]} 7. O-O {[%clk 0:02:54]}  O-O {[%clk 0:02:31]} 8. g3 {[%clk 0:02:50]}  Rb8 {[%clk 0:02:29]} 9. c4 {[%clk 0:02:49]}  b6 {[%clk 0:02:30]} 10. Nbc3 {[%clk 0:02:48]}  Bb7 {[%clk 0:02:28]} 11. Bxb7 {[%clk 0:02:47]}  Rxb7 {[%clk 0:02:29]} 12. Be3 {[%clk 0:02:45]}  c5 {[%clk 0:02:25]} 13. d5 {[%clk 0:02:43]}  exd5 {[%clk 0:02:13]} 14. cxd5 {[%clk 0:02:43]}  Bd6 {[%clk 0:01:54]} 15. Bf4 {[%clk 0:02:36]}  Bxf4 {[%clk 0:01:49]} 16. Nxf4 {[%clk 0:02:36]}  Ne5 {[%clk 0:01:49]} 17. Re1 {[%clk 0:02:34]}  Re8 {[%clk 0:01:44]} 18. b3 {[%clk 0:02:27]}  a6 {[%clk 0:01:42]} 19. Kg2 {[%clk 0:02:25]}  Qd6 {[%clk 0:01:37]} 20. Qd2 {[%clk 0:02:23]}  Rbe7 {[%clk 0:01:36]} 21. Rad1 {[%clk 0:02:17]}  g5 {[%clk 0:01:21]} 22. Nh3 {[%clk 0:02:13]}  h6 {[%clk 0:01:21]} 23. f4 {[%clk 0:02:11]}  Neg4 {[%clk 0:01:15]} 24. Rxe7 {[%clk 0:02:08]}  Rxe7 {[%clk 0:01:12]} 25. Re1 {[%clk 0:01:49]}  Rxe1 {[%clk 0:01:11]} 26. Qxe1 {[%clk 0:01:48]}  Nxd5 {[%clk 0:01:11]} 27. Qe8+ {[%clk 0:01:41]}  Kg7 {[%clk 0:01:11]} 28. Ne4 {[%clk 0:01:40]}  Nde3+ {[%clk 0:01:10]} 29. Kf3 {[%clk 0:01:37]}  Qd1# {[%clk 0:01:10]} 0-1


[Site "https://www.chess.com"]

[Event "Titled Tuesday Blitz December 13 Early 2022"]
[White "Weetik, Vjacheslav"]
[Black "Martinez Ramirez, Lennis"]
[WhiteFideId "4153472"]
[BlackFideId "3509079"]
[WhiteElo "2469"]
[BlackElo "2439"]
[Result "1-0"]
[Round "11"]
[TimeControl "180+1"]
[Date "2022.12.14"]
[WhiteClock "0:00:05"]
[BlackClock "0:00:04"]

1. d4 {[%clk 0:02:53]}  d5 {[%clk 0:02:59]} 2. Nf3 {[%clk 0:02:53]}  c6 {[%clk 0:03:00]} 3. c4 {[%clk 0:02:53]}  Nf6 {[%clk 0:03:01]} 4. Nc3 {[%clk 0:02:53]}  e6 {[%clk 0:03:01]} 5. e3 {[%clk 0:02:53]}  Nbd7 {[%clk 0:02:56]} 6. Bd3 {[%clk 0:02:54]}  dxc4 {[%clk 0:02:52]} 7. Bxc4 {[%clk 0:02:55]}  Bd6 {[%clk 0:02:51]} 8. O-O {[%clk 0:02:52]}  b5 {[%clk 0:02:50]} 9. Be2 {[%clk 0:02:51]}  Bb7 {[%clk 0:02:50]} 10. e4 {[%clk 0:02:51]}  e5 {[%clk 0:02:50]} 11. dxe5 {[%clk 0:02:50]}  Nxe5 {[%clk 0:02:50]} 12. Nd4 {[%clk 0:02:51]}  O-O {[%clk 0:02:37]} 13. Bg5 {[%clk 0:02:44]}  h6 {[%clk 0:02:35]} 14. Bh4 {[%clk 0:02:40]}  g6 {[%clk 0:02:30]} 15. Kh1 {[%clk 0:02:17]}  Be7 {[%clk 0:02:04]} 16. f4 {[%clk 0:02:14]}  Nc4 {[%clk 0:02:01]} 17. Bxc4 {[%clk 0:02:10]}  bxc4 {[%clk 0:02:02]} 18. e5 {[%clk 0:01:56]}  Nh5 {[%clk 0:01:40]} 19. Bxe7 {[%clk 0:01:42]}  Qxe7 {[%clk 0:01:41]} 20. Qg4 {[%clk 0:01:32]}  c5 {[%clk 0:01:28]} 21. Ndb5 {[%clk 0:00:50]}  Qe6 {[%clk 0:01:05]} 22. Qh4 {[%clk 0:00:26]}  Ng7 {[%clk 0:00:57]} 23. Qxh6 {[%clk 0:00:19]}  Nf5 {[%clk 0:00:56]} 24. Qh3 {[%clk 0:00:19]}  Kg7 {[%clk 0:00:55]} 25. Nd6 {[%clk 0:00:15]}  Nxd6 {[%clk 0:00:55]} 26. Qxe6 {[%clk 0:00:15]}  fxe6 {[%clk 0:00:56]} 27. exd6 {[%clk 0:00:16]}  Rfd8 {[%clk 0:00:44]} 28. Rad1 {[%clk 0:00:16]}  Rab8 {[%clk 0:00:45]} 29. Na4 {[%clk 0:00:11]}  Bd5 {[%clk 0:00:42]} 30. Nxc5 {[%clk 0:00:11]}  Kf7 {[%clk 0:00:36]} 31. Rd2 {[%clk 0:00:07]}  Rxd6 {[%clk 0:00:35]} 32. Rfd1 {[%clk 0:00:05]}  Rdb6 {[%clk 0:00:35]} 33. Na4 {[%clk 0:00:05]}  Rb4 {[%clk 0:00:35]} 34. Nc3 {[%clk 0:00:06]}  Rxb2 {[%clk 0:00:35]} 35. h3 {[%clk 0:00:05]}  Rxd2 {[%clk 0:00:15]} 36. Rxd2 {[%clk 0:00:05]}  Rc8 {[%clk 0:00:16]} 37. Kg1 {[%clk 0:00:06]}  Kf6 {[%clk 0:00:16]} 38. Kf2 {[%clk 0:00:06]}  Rc5 {[%clk 0:00:15]} 39. Ke3 {[%clk 0:00:07]}  Bc6 {[%clk 0:00:13]} 40. g4 {[%clk 0:00:05]}  g5 {[%clk 0:00:13]} 41. Kd4 {[%clk 0:00:05]}  Ra5 {[%clk 0:00:08]} 42. Rf2 {[%clk 0:00:05]}  gxf4 {[%clk 0:00:04]} 43. Rxf4+ {[%clk 0:00:06]}  Ke7 {[%clk 0:00:04]} 44. Rf2 {[%clk 0:00:05]}  Bd5 {[%clk 0:00:02]} 45. h4 {[%clk 0:00:05]}  Kd6 {[%clk 0:00:03]} 46. h5 {[%clk 0:00:03]}  e5+ {[%clk 0:00:03]} 47. Ke3 {[%clk 0:00:03]}  Ra3 {[%clk 0:00:03]} 48. Kd2 {[%clk 0:00:04]}  Be6 {[%clk 0:00:03]} 49. h6 {[%clk 0:00:03]}  Kc5 {[%clk 0:00:03]} 50. h7 {[%clk 0:00:03]}  Kd4 {[%clk 0:00:03]} 51. Ne2+ {[%clk 0:00:03]}  Kc5 {[%clk 0:00:02]} 52. h8=Q {[%clk 0:00:04]}  Rxa2+ {[%clk 0:00:02]} 53. Ke1 {[%clk 0:00:04]}  Ra3 {[%clk 0:00:03]} 54. Qxe5+ {[%clk 0:00:04]}  Bd5 {[%clk 0:00:03]} 55. Nf4 {[%clk 0:00:04]}  Rd3 {[%clk 0:00:01]} 56. Nxd3+ {[%clk 0:00:04]}  cxd3 {[%clk 0:00:02]} 57. Kd2 {[%clk 0:00:05]}  Kc4 {[%clk 0:00:02]} 58. Qc3+ {[%clk 0:00:05]}  Kb5 {[%clk 0:00:02]} 59. Rf5 {[%clk 0:00:05]}  Ka4 {[%clk 0:00:03]} 60. Rxd5 {[%clk 0:00:05]}  a5 {[%clk 0:00:04]} 61. Rxa5# {[%clk 0:00:05]} 1-0


[Site "https://www.chess.com"]

[Event "Titled Tuesday Blitz December 13 Early 2022"]
[White "Yeremyan, Alen"]
[Black "Deuer, Marius"]
[WhiteFideId "13308998"]
[BlackFideId "16236432"]
[WhiteElo "2159"]
[BlackElo "2226"]
[Result "1-0"]
[Round "11"]
[TimeControl "180+1"]
[Date "2022.12.14"]
[WhiteClock "0:02:39"]
[BlackClock "0:00:34"]

1. c4 {[%clk 0:03:00]}  Nf6 {[%clk 0:02:57]} 2. Nc3 {[%clk 0:03:00]}  e6 {[%clk 0:02:56]} 3. e4 {[%clk 0:03:01]}  d5 {[%clk 0:02:55]} 4. cxd5 {[%clk 0:03:01]}  exd5 {[%clk 0:02:54]} 5. e5 {[%clk 0:03:02]}  Nfd7 {[%clk 0:02:54]} 6. d4 {[%clk 0:03:02]}  c5 {[%clk 0:02:54]} 7. f4 {[%clk 0:03:03]}  Nc6 {[%clk 0:02:51]} 8. Nf3 {[%clk 0:03:03]}  cxd4 {[%clk 0:02:49]} 9. Nxd4 {[%clk 0:03:04]}  Bc5 {[%clk 0:02:45]} 10. Be3 {[%clk 0:03:04]}  O-O {[%clk 0:02:44]} 11. Be2 {[%clk 0:03:04]}  Qb6 {[%clk 0:02:41]} 12. Nxd5 {[%clk 0:03:03]}  Qa5+ {[%clk 0:02:39]} 13. Bd2 {[%clk 0:03:01]}  Qd8 {[%clk 0:02:37]} 14. Nxc6 {[%clk 0:03:01]}  bxc6 {[%clk 0:02:36]} 15. Ne3 {[%clk 0:03:02]}  a5 {[%clk 0:02:05]} 16. O-O {[%clk 0:03:00]}  Qb6 {[%clk 0:02:05]} 17. Qc1 {[%clk 0:02:58]}  Ba6 {[%clk 0:02:04]} 18. Bxa6 {[%clk 0:02:58]}  Rxa6 {[%clk 0:02:04]} 19. Kh1 {[%clk 0:02:57]}  Bd4 {[%clk 0:01:50]} 20. Rb1 {[%clk 0:02:54]}  Qc5 {[%clk 0:01:37]} 21. Nf5 {[%clk 0:02:47]}  g6 {[%clk 0:01:30]} 22. Nxd4 {[%clk 0:02:46]}  Qxd4 {[%clk 0:01:29]} 23. Bc3 {[%clk 0:02:47]}  Qe4 {[%clk 0:01:27]} 24. f5 {[%clk 0:02:44]}  c5 {[%clk 0:01:12]} 25. Qh6 {[%clk 0:02:40]}  Kh8 {[%clk 0:00:35]} 26. e6+ {[%clk 0:02:39]}  Ne5 {[%clk 0:00:34]} 27. Qxf8# {[%clk 0:02:39]} 1-0


[Site "https://www.chess.com"]

[Event "Titled Tuesday Blitz December 13 Early 2022"]
[White "Zaichenko, Daria"]
[Black "Martin Duque, Jesus"]
[WhiteFideId "4197453"]
[BlackFideId "2208954"]
[WhiteElo "2039"]
[BlackElo "2297"]
[Result "1-0"]
[Round "11"]
[TimeControl "180+1"]
[Date "2022.12.14"]
[WhiteClock "0:02:08"]
[BlackClock "0:02:08"]

1. e4 {[%clk 0:02:56]}  c5 {[%clk 0:02:55]} 2. Nf3 {[%clk 0:02:55]}  b6 {[%clk 0:02:50]} 3. d4 {[%clk 0:02:55]}  cxd4 {[%clk 0:02:51]} 4. Nxd4 {[%clk 0:02:56]}  Bb7 {[%clk 0:02:52]} 5. Bd3 {[%clk 0:02:53]}  g6 {[%clk 0:02:52]} 6. Be3 {[%clk 0:02:51]}  Bg7 {[%clk 0:02:52]} 7. O-O {[%clk 0:02:51]}  Nc6 {[%clk 0:02:52]} 8. Nxc6 {[%clk 0:02:49]}  dxc6 {[%clk 0:02:49]} 9. Nc3 {[%clk 0:02:46]}  Nf6 {[%clk 0:02:49]} 10. e5 {[%clk 0:02:45]}  Nd5 {[%clk 0:02:44]} 11. Nxd5 {[%clk 0:02:42]}  Qxd5 {[%clk 0:02:43]} 12. f4 {[%clk 0:02:40]}  O-O {[%clk 0:02:43]} 13. c4 {[%clk 0:02:36]}  Qd7 {[%clk 0:02:43]} 14. Qc2 {[%clk 0:02:36]}  Rfd8 {[%clk 0:02:42]} 15. Rad1 {[%clk 0:02:35]}  Qg4 {[%clk 0:02:41]} 16. h3 {[%clk 0:02:33]}  Qe6 {[%clk 0:02:34]} 17. f5 {[%clk 0:02:21]}  Qxe5 {[%clk 0:02:34]} 18. Bf4 {[%clk 0:02:19]}  Qc5+ {[%clk 0:02:31]} 19. Kh1 {[%clk 0:02:17]}  Rd7 {[%clk 0:02:20]} 20. fxg6 {[%clk 0:02:15]}  hxg6 {[%clk 0:02:21]} 21. Bxg6 {[%clk 0:02:11]}  Rxd1 {[%clk 0:02:11]} 22. Bh7+ {[%clk 0:02:09]}  Kh8 {[%clk 0:02:10]} 23. Rxd1 {[%clk 0:02:09]}  Qd4 {[%clk 0:02:08]} 24. Rxd4 {[%clk 0:02:08]} 1-0


[Site "https://www.chess.com"]